fUST/lending_fUST_20250118
["ID","MTS","AMOUNT","RATE_DAILY","PERIOD"]
[349351033,1737130243241,-500.0,0.00022054,3]
[349351035,1737130243251,-500.0,0.00022054,3]
[349351037,1737130243260,-500.0,0.00022054,3]
[349351039,1737130243269,-1258.87,0.00022054,3]
[349351041,1737130243280,-500.0,0.00022054,3]
[349351043,1737130243289,-4420.557664,0.00022054,3]
[349351046,1737130243306,-1522.12636978,0.00022054,3]
[349351258,1737130246013,-500.0,0.00021917,3]
[349351259,1737130246024,-27.1500001,0.00021917,3]
[349351260,1737130246069,-675.9799999,0.00021917,3]
[349351261,1737130246079,-5261.24273565,0.00022054,3]
[349351262,1737130246092,-1803.79323057,0.00022054,3]
[349351263,1737130246102,-500.0,0.00022054,3]
[349351264,1737130246112,-500.0,0.00022054,3]
[349351265,1737130246122,-500.0,0.00022054,3]
[349351266,1737130246132,-500.0,0.00022054,3]
[349351267,1737130246142,-500.0,0.00022054,3]
[349351268,1737130246155,-500.0,0.00022054,3]
[349351269,1737130246167,-1179.98472673,0.00022054,3]
[349351270,1737130246178,-660.95807944,0.00022054,3]
[349351272,1737130300523,278.83640644,0.00022,120]
[349351275,1737130541066,162.750869,0.00013973,2]
[349351366,1737131326591,2000.0,0.00015053,2]
[349351415,1737131432239,-182.62788755,0.000189,2]
[349351417,1737131432250,-267.41560003,0.00019373,2]
[349351419,1737131432262,-3593.76743629,0.0002,20]
[349351421,1737131432272,-167.7920425,0.00020327,2]
[349351424,1737131432282,-176.4689697,0.00020648,2]
[349351425,1737131432291,-256.903,0.00020861,2]
[349351427,1737131432300,-17993.5584926,0.00020862,2]
[349351429,1737131432309,-468.79718078,0.00021162,2]
[349351431,1737131432318,-150.99,0.000216,2]
[349351433,1737131432327,-150.99,0.000216,2]
[349351435,1737131432337,-150.99,0.000216,2]
[349351437,1737131432346,-150.99,0.000216,2]
[349351439,1737131432355,-151.01675001,0.000216,2]
[349351441,1737131432365,-174.68768279,0.0002181,2]
[349351443,1737131432374,-152.0,0.00021827,2]
[349351445,1737131432384,-154.0316351,0.000219,2]
[349351447,1737131432393,-495.8528751,0.000219,2]
[349351449,1737131432403,-154.0316351,0.000219,2]
[349351452,1737131432420,-153.0,0.000219,2]
[349351454,1737131432432,-342.3864402,0.000219,2]
[349351456,1737131432442,-154.0316351,0.000219,2]
[349351458,1737131432452,-365.7892497,0.000219,2]
[349351460,1737131432463,-153.9216547,0.000219,2]
[349351461,1737131432472,-153.2995019,0.000219,2]
[349351462,1737131432482,-4682.20157128,0.000219,3]
[349351463,1737131432493,-4999.999999,0.0002191,2]
[349351464,1737131432503,-500.0,0.00021916,2]
[349351465,1737131432514,-500.0,0.00021916,2]
[349351466,1737131432524,-500.0,0.00021916,2]
[349351467,1737131432534,-500.0,0.00021916,2]
[349351468,1737131432545,-500.0,0.00021916,2]
[349351469,1737131432555,-500.0,0.00021916,2]
[349351470,1737131432567,-508.9868055,0.00021916,2]
[349351471,1737131432577,-500.0,0.00021916,2]
[349351472,1737131432586,-500.0,0.00021916,2]
[349351473,1737131432596,-500.0,0.00021916,2]
[349351474,1737131432605,-500.0,0.00021916,2]
[349351475,1737131432615,-500.0,0.00021916,2]
[349351476,1737131432628,-500.0,0.00021916,2]
[349351477,1737131432638,-500.0,0.00021916,2]
[349351478,1737131432647,-500.0,0.00021916,2]
[349351479,1737131432658,-400.25103828,0.00021916,2]
[349351480,1737131432667,-286.80131699,0.00021916,2]
[349351481,1737131432676,-500.0,0.00021916,2]
[349351482,1737131432686,-500.0,0.00021916,2]
[349351483,1737131432697,-500.0,0.00021916,2]
[349351484,1737131432710,-500.0,0.00021916,2]
[349351485,1737131432720,-550.02777154,0.00021916,2]
[349351486,1737131432728,-500.0,0.00021916,2]
[349351487,1737131432738,-500.0,0.00021916,2]
[349351488,1737131432748,-500.0,0.00021916,2]
[349351489,1737131432759,-500.0,0.00021916,2]
[349351490,1737131432769,-500.0,0.00021916,2]
[349351491,1737131432779,-500.0,0.00021916,2]
[349351492,1737131432789,-500.0,0.00021916,2]
[349351493,1737131432799,-500.0,0.00021916,2]
[349351494,1737131432808,-500.0,0.00021916,2]
[349351495,1737131432818,-500.0,0.00021916,2]
[349351496,1737131432827,-501.17727655,0.00021917,3]
[349351497,1737131432837,-581.35154386,0.00021917,3]
[349351498,1737131432847,-506.70146959,0.00021917,3]
[349351499,1737131432857,-560.64139077,0.00021917,3]
[349351500,1737131432866,-494.58898614,0.00021917,3]
[349351501,1737131432876,-503.54888721,0.00021917,3]
[349351502,1737131432885,-502.34240896,0.00021917,3]
[349351503,1737131432895,-500.0,0.00021917,3]
[349351504,1737131432905,-500.0,0.00021917,3]
[349351505,1737131432914,-502.65166814,0.00021917,3]
[349351506,1737131432924,-500.0,0.00021917,3]
[349351507,1737131432934,-151.20617073,0.00021917,3]
[349351508,1737131432943,-501.60552393,0.00021917,3]
[349351509,1737131432953,-506.65245608,0.00021917,3]
[349351510,1737131432962,-500.0,0.00021917,3]
[349351511,1737131432971,-502.35972386,0.00021917,3]
[349351512,1737131432981,-500.0,0.00021917,3]
[349351513,1737131432990,-500.0,0.00021917,3]
[349351514,1737131432999,-367.54671706,0.00021917,3]
[349351515,1737131433011,-500.0,0.00021917,3]
[349351516,1737131433020,-500.0,0.00021917,3]
[349351517,1737131433030,-500.0,0.00021917,2]
[349351518,1737131433040,-500.0,0.00021917,3]
[349351519,1737131433049,-500.0,0.00021917,3]
[349351520,1737131433058,-321.16675695,0.00021917,3]
[349351521,1737131433068,-500.0,0.00021917,3]
[349351522,1737131433078,-500.0,0.00021917,3]
[349351523,1737131433088,-500.0,0.00021917,3]
[349351524,1737131433098,-506.50635921,0.00021917,3]
[349351525,1737131433108,-504.97681335,0.00021917,3]
[349351526,1737131433118,-500.0,0.00021917,3]
[349351527,1737131433127,-500.0,0.00021917,3]
[349351528,1737131433136,-500.0,0.00021917,3]
[349351529,1737131433146,-500.0,0.00021917,3]
[349351530,1737131433156,-500.0,0.00021917,3]
[349351531,1737131433166,-500.0,0.00021917,3]
[349351532,1737131433176,-500.0,0.00021917,3]
[349351533,1737131433186,-500.0,0.00021917,3]
[349351534,1737131433196,-334.34297622,0.00021917,3]
[349351535,1737131433205,-331.34120714,0.00021917,3]
[349351536,1737131433215,-500.0,0.00021917,3]
[349351537,1737131433225,-500.0,0.00021917,3]
[349351538,1737131433235,-500.0,0.00021917,3]
[349351539,1737131433246,-503.0998738,0.00021917,3]
[349351540,1737131433256,-500.0,0.00021917,3]
[349351541,1737131433266,-500.0,0.00021917,3]
[349351542,1737131433279,-500.0,0.00021917,3]
[349351543,1737131433289,-500.0,0.00021917,3]
[349351544,1737131433299,-500.0,0.00021917,3]
[349351545,1737131433309,-500.0,0.00021917,3]
[349351546,1737131433319,-500.0,0.00021917,3]
[349351547,1737131433329,-500.0,0.00021917,3]
[349351548,1737131433339,-500.0,0.00021917,3]
[349351549,1737131433349,-500.0,0.00021917,3]
[349351550,1737131433359,-528.59443545,0.00021917,3]
[349351551,1737131433369,-500.0,0.00021917,3]
[349351552,1737131433379,-500.0,0.00021917,3]
[349351553,1737131433389,-500.0,0.00021917,3]
[349351554,1737131433399,-505.08942528,0.00021917,3]
[349351555,1737131433408,-500.0,0.00021917,3]
[349351556,1737131433418,-500.85039201,0.00021917,3]
[349351557,1737131433428,-500.0,0.00021917,3]
[349351558,1737131433437,-500.0,0.00021917,3]
[349351559,1737131433448,-500.0,0.00021917,3]
[349351560,1737131433458,-500.0,0.00021917,3]
[349351561,1737131433468,-500.0,0.00021917,3]
[349351562,1737131433478,-509.5504308,0.00021917,3]
[349351563,1737131433489,-509.57619342,0.00021917,3]
[349351564,1737131433499,-283.61365713,0.00021917,3]
[349351565,1737131433512,-743.55,0.00021917,3]
[349351566,1737131433522,-500.0,0.00021917,3]
[349351567,1737131433532,-225.48182622,0.00021917,3]
[349351568,1737131433542,-500.0,0.00021917,3]
[349351569,1737131433552,-500.0,0.00021917,3]
[349351570,1737131433561,-500.0,0.00021917,3]
[349351571,1737131433571,-500.0,0.00021917,3]
[349351572,1737131433580,-500.0,0.00021917,3]
[349351573,1737131433590,-500.0,0.00021917,3]
[349351574,1737131433600,-500.0,0.00021917,3]
[349351575,1737131433610,-500.0,0.00021917,3]
[349351576,1737131433620,-500.0,0.00021917,3]
[349351577,1737131433630,-500.0,0.00021917,3]
[349351578,1737131433639,-496.65104479,0.00021917,3]
[349351579,1737131433648,-500.0,0.00021917,3]
[349351580,1737131433658,-500.0,0.00021917,3]
[349351581,1737131433668,-500.0,0.00021917,3]
[349351582,1737131433678,-500.0,0.00021917,3]
[349351583,1737131433688,-534.13234844,0.00021917,3]
[349351584,1737131433702,-500.0,0.00021917,3]
[349351585,1737131433712,-500.0,0.00021917,3]
[349351586,1737131433721,-500.0,0.00021917,3]
[349351587,1737131433731,-500.0,0.00021917,3]
[349351588,1737131433741,-500.0,0.00021917,3]
[349351589,1737131433752,-500.0,0.00021917,3]
[349351590,1737131433764,-500.0,0.00021917,3]
[349351591,1737131433774,-500.0,0.00021917,3]
[349351592,1737131433785,-500.0,0.00021917,3]
[349351593,1737131433795,-500.0,0.00021917,3]
[349351594,1737131433805,-500.0,0.00021917,3]
[349351595,1737131433816,-500.0,0.00021917,3]
[349351596,1737131433826,-500.0,0.00021917,3]
[349351597,1737131433836,-515.80745849,0.00021917,3]
[349351598,1737131433846,-500.0,0.00021917,3]
[349351599,1737131433856,-500.7511855,0.00021917,3]
[349351600,1737131433865,-500.0,0.00021917,3]
[349351601,1737131433876,-500.0,0.00021917,3]
[349351602,1737131433885,-500.0,0.00021917,3]
[349351603,1737131433895,-500.0,0.00021917,3]
[349351604,1737131433905,-500.0,0.00021917,3]
[349351605,1737131433915,-500.0,0.00021917,3]
[349351606,1737131433924,-500.0,0.00021917,3]
[349351607,1737131433934,-500.0,0.00021917,3]
[349351608,1737131433944,-500.0,0.00021917,3]
[349351609,1737131433954,-500.0,0.00021917,3]
[349351610,1737131433964,-501.2341012,0.00021917,3]
[349351611,1737131433974,-500.0,0.00021917,3]
[349351612,1737131433983,-500.0,0.00021917,3]
[349351613,1737131433992,-500.0,0.00021917,3]
[349351614,1737131434002,-500.0,0.00021917,3]
[349351615,1737131434013,-500.0,0.00021917,3]
[349351616,1737131434024,-500.0,0.00021917,3]
[349351617,1737131434034,-500.0,0.00021917,3]
[349351618,1737131434044,-500.0,0.00021917,3]
[349351619,1737131434054,-500.0,0.00021917,3]
[349351620,1737131434064,-500.0,0.00021917,3]
[349351621,1737131434073,-500.0,0.00021917,3]
[349351622,1737131434083,-500.0,0.00021917,3]
[349351623,1737131434092,-500.0,0.00021917,3]
[349351624,1737131434102,-500.0,0.00021917,3]
[349351625,1737131434112,-500.0,0.00021917,3]
[349351626,1737131434122,-500.0,0.00021917,3]
[349351627,1737131434131,-500.0,0.00021917,3]
[349351628,1737131434141,-500.0,0.00021917,3]
[349351629,1737131434151,-500.0,0.00021917,3]
[349351630,1737131434161,-504.51404051,0.00021917,3]
[349351631,1737131434171,-500.0,0.00021917,3]
[349351632,1737131434180,-500.0,0.00021917,3]
[349351633,1737131434190,-517.59396766,0.00021917,3]
[349351634,1737131434201,-500.0,0.00021917,3]
[349351635,1737131434210,-500.0,0.00021917,3]
[349351636,1737131434220,-500.0,0.00021917,3]
[349351637,1737131434229,-500.0,0.00021917,3]
[349351638,1737131434239,-533.51168514,0.00021917,3]
[349351639,1737131434250,-500.0,0.00021917,3]
[349351640,1737131434262,-500.0,0.00021917,3]
[349351641,1737131434272,-500.0,0.00021917,3]
[349351642,1737131434282,-500.0,0.00021917,3]
[349351643,1737131434292,-500.0,0.00021917,3]
[349351644,1737131434302,-500.0,0.00021917,3]
[349351645,1737131434312,-500.0,0.00021917,3]
[349351646,1737131434322,-500.0,0.00021917,3]
[349351647,1737131434332,-500.0,0.00021917,3]
[349351648,1737131434342,-500.0,0.00021917,3]
[349351649,1737131434352,-500.0,0.00021917,3]
[349351650,1737131434361,-500.0,0.00021917,3]
[349351651,1737131434371,-500.0,0.00021917,3]
[349351652,1737131434505,-500.0,0.00021917,3]
[349351653,1737131434519,-500.0,0.00021917,3]
[349351654,1737131434529,-500.0,0.00021917,3]
[349351655,1737131434539,-500.0,0.00021917,3]
[349351656,1737131434549,-501.36169514,0.00021917,3]
[349351657,1737131434558,-500.0,0.00021917,3]
[349351658,1737131434567,-500.0,0.00021917,3]
[349351659,1737131434577,-500.0,0.00021917,3]
[349351660,1737131434587,-500.0,0.00021917,3]
[349351661,1737131434596,-500.0,0.00021917,3]
[349351662,1737131434610,-500.0,0.00021917,3]
[349351663,1737131434620,-500.0,0.00021917,3]
[349351664,1737131434630,-500.0,0.00021917,3]
[349351665,1737131434639,-500.0,0.00021917,3]
[349351666,1737131434649,-500.0,0.00021917,3]
[349351667,1737131434659,-500.0,0.00021917,3]
[349351668,1737131434668,-500.0,0.00021917,3]
[349351669,1737131434678,-500.0,0.00021917,3]
[349351670,1737131434687,-500.0,0.00021917,3]
[349351671,1737131434697,-506.70173155,0.00021917,3]
[349351672,1737131434710,-500.0,0.00021917,3]
[349351673,1737131434719,-500.0,0.00021917,3]
[349351674,1737131434729,-500.0,0.00021917,3]
[349351675,1737131434738,-500.0,0.00021917,3]
[349351676,1737131434749,-500.0,0.00021917,3]
[349351677,1737131434761,-500.0,0.00021917,2]
[349351678,1737131434770,-504.62332342,0.00021917,3]
[349351679,1737131434782,-500.0,0.00021917,3]
[349351680,1737131434792,-500.0,0.00021917,3]
[349351681,1737131434801,-500.0,0.00021917,3]
[349351682,1737131434811,-500.0,0.00021917,3]
[349351683,1737131434820,-500.0,0.00021917,3]
[349351684,1737131434830,-500.0,0.00021917,3]
[349351685,1737131434839,-500.0,0.00021917,3]
[349351686,1737131434849,-500.0,0.00021917,3]
[349351687,1737131434858,-500.0,0.00021917,3]
[349351688,1737131434868,-500.0,0.00021917,3]
[349351689,1737131434878,-3773.2,0.00021917,3]
[349351690,1737131434888,-500.0,0.00021917,3]
[349351691,1737131434898,-500.0,0.00021917,3]
[349351692,1737131434907,-500.0,0.00021917,3]
[349351693,1737131434917,-500.0,0.00021917,3]
[349351694,1737131434927,-500.0,0.00021917,3]
[349351695,1737131434936,-500.0,0.00021917,3]
[349351696,1737131434946,-500.0,0.00021917,3]
[349351697,1737131434956,-500.0,0.00021917,3]
[349351698,1737131434967,-500.0,0.00021917,3]
[349351699,1737131434977,-561.01,0.00021917,3]
[349351700,1737131434986,-500.0,0.00021917,3]
[349351701,1737131434998,-500.0,0.00021917,3]
[349351702,1737131435009,-500.0,0.00021917,3]
[349351703,1737131435019,-500.0,0.00021917,3]
[349351704,1737131435029,-500.0,0.00021917,3]
[349351705,1737131435039,-500.0,0.00021917,3]
[349351706,1737131435049,-500.0,0.00021917,3]
[349351707,1737131435059,-2031.5,0.00021917,3]
[349351708,1737131435068,-500.0,0.00021917,3]
[349351709,1737131435078,-500.0,0.00021917,3]
[349351710,1737131435088,-500.0,0.00021917,3]
[349351711,1737131435097,-192.93908144,0.00021917,3]
[349351712,1737131435107,-500.0,0.00021917,3]
[349351713,1737131435116,-500.0,0.00021917,3]
[349351714,1737131435126,-188.0,0.00021917,2]
[349351715,1737131435136,-500.0,0.00021917,3]
[349351716,1737131435146,-500.0,0.00021917,3]
[349351717,1737131435155,-500.0,0.00021917,3]
[349351718,1737131435165,-500.0,0.00021917,3]
[349351719,1737131435175,-500.0,0.00021917,3]
[349351720,1737131435184,-500.0,0.00021917,3]
[349351721,1737131435194,-500.0,0.00021917,3]
[349351722,1737131435204,-517.26666289,0.00021917,3]
[349351723,1737131435214,-853.65,0.00021917,3]
[349351724,1737131435224,-500.0,0.00021917,3]
[349351725,1737131435234,-1429.3,0.00021917,3]
[349351726,1737131435244,-9204.75,0.00021917,3]
[349351727,1737131435254,-446.7719386,0.00021917,3]
[349351728,1737131435267,-500.0,0.00021917,3]
[349351729,1737131435276,-500.0,0.00021917,3]
[349351730,1737131435285,-500.0,0.00021917,3]
[349351731,1737131435295,-500.0,0.00021917,3]
[349351732,1737131435304,-500.0,0.00021917,3]
[349351733,1737131435314,-851.01,0.00021917,3]
[349351734,1737131435323,-500.0,0.00021917,3]
[349351735,1737131435333,-1110.25,0.00021917,3]
[349351736,1737131435343,-500.0,0.00021917,3]
[349351737,1737131435353,-500.0,0.00021917,3]
[349351738,1737131435362,-500.0,0.00021917,3]
[349351739,1737131435372,-500.0,0.00021917,3]
[349351740,1737131435381,-500.0,0.00021917,3]
[349351741,1737131435391,-500.0,0.00021917,3]
[349351742,1737131435400,-1446.36,0.00021917,3]
[349351743,1737131435411,-500.0,0.00021917,3]
[349351744,1737131435420,-503.15191264,0.00021917,3]
[349351745,1737131435429,-500.0,0.00021917,3]
[349351746,1737131435439,-500.0,0.00021917,3]
[349351747,1737131435448,-500.0,0.00021917,3]
[349351748,1737131435458,-500.0,0.00021917,3]
[349351749,1737131435468,-813.77,0.00021917,3]
[349351750,1737131435477,-500.0,0.00021917,3]
[349351751,1737131435487,-500.0,0.00021917,3]
[349351752,1737131435496,-500.0,0.00021917,3]
[349351753,1737131435505,-500.0,0.00021917,3]
[349351754,1737131435516,-500.0,0.00021917,3]
[349351755,1737131435525,-500.0,0.00021917,3]
[349351756,1737131435535,-1000.0,0.00021917,7]
[349351757,1737131435544,-500.0,0.00021917,3]
[349351758,1737131435553,-500.0,0.00021917,3]
[349351759,1737131435563,-3063.91,0.00021917,3]
[349351760,1737131435572,-500.0,0.00021917,3]
[349351761,1737131435582,-500.0,0.00021917,3]
[349351762,1737131435591,-500.0,0.00021917,3]
[349351763,1737131435601,-500.0,0.00021917,3]
[349351764,1737131435611,-500.0,0.00021917,3]
[349351765,1737131435620,-509.30789237,0.00021917,3]
[349351766,1737131435630,-500.0,0.00021917,3]
[349351767,1737131435639,-2300.8,0.00021917,3]
[349351768,1737131435649,-500.0,0.00021917,3]
[349351769,1737131435659,-503.35757614,0.00021917,3]
[349351770,1737131435669,-500.0,0.00021917,3]
[349351771,1737131435679,-500.0,0.00021917,3]
[349351772,1737131435689,-500.0,0.00021917,3]
[349351773,1737131435701,-500.0,0.00021917,3]
[349351774,1737131435710,-500.0,0.00021917,3]
[349351775,1737131435719,-500.0,0.00021917,3]
[349351776,1737131435729,-500.0,0.00021917,3]
[349351777,1737131435740,-500.0,0.00021917,3]
[349351778,1737131435749,-500.0,0.00021917,3]
[349351779,1737131435760,-500.0,0.00021917,3]
[349351780,1737131435771,-500.0,0.00021917,3]
[349351781,1737131435781,-500.0,0.00021917,3]
[349351782,1737131435791,-500.0,0.00021917,3]
[349351783,1737131435800,-500.0,0.00021917,3]
[349351784,1737131435811,-500.0,0.00021917,3]
[349351785,1737131435820,-505.44472084,0.00021917,3]
[349351786,1737131435829,-500.0,0.00021917,3]
[349351787,1737131435840,-500.0,0.00021917,3]
[349351788,1737131435849,-500.0,0.00021917,3]
[349351789,1737131435859,-501.83727429,0.00021917,3]
[349351790,1737131435868,-500.0,0.00021917,3]
[349351791,1737131435877,-500.0,0.00021917,3]
[349351792,1737131435887,-500.0,0.00021917,3]
[349351793,1737131435896,-500.0,0.00021917,3]
[349351794,1737131435905,-500.0,0.00021917,3]
[349351795,1737131435914,-500.0,0.00021917,3]
[349351796,1737131435923,-500.0,0.00021917,3]
[349351797,1737131435932,-500.0,0.00021917,3]
[349351798,1737131435941,-1321.81,0.00021917,3]
[349351799,1737131435950,-500.0,0.00021917,3]
[349351800,1737131435959,-500.0,0.00021917,3]
[349351801,1737131435969,-500.0,0.00021917,3]
[349351802,1737131435978,-500.0,0.00021917,3]
[349351803,1737131435987,-500.0,0.00021917,3]
[349351804,1737131435996,-500.0,0.00021917,3]
[349351805,1737131436006,-500.0,0.00021917,3]
[349351806,1737131436018,-500.0,0.00021917,3]
[349351807,1737131436027,-500.0,0.00021917,3]
[349351808,1737131436038,-500.0,0.00021917,3]
[349351809,1737131436048,-500.0,0.00021917,3]
[349351810,1737131436058,-500.0,0.00021917,3]
[349351811,1737131436067,-500.0,0.00021917,3]
[349351812,1737131436077,-500.0,0.00021917,3]
[349351813,1737131436087,-500.0,0.00021917,3]
[349351814,1737131436096,-500.0,0.00021917,3]
[349351815,1737131436106,-500.0,0.00021917,3]
[349351816,1737131436115,-500.0,0.00021917,3]
[349351817,1737131436124,-363.48144738,0.00021917,3]
[349351818,1737131436134,-500.0,0.00021917,3]
[349351819,1737131436143,-14553.06,0.00021917,3]
[349351820,1737131436152,-500.0,0.00021917,3]
[349351821,1737131436162,-500.0,0.00021917,3]
[349351822,1737131436171,-500.0,0.00021917,3]
[349351823,1737131436180,-500.0,0.00021917,3]
[349351824,1737131436189,-500.0,0.00021917,3]
[349351825,1737131436199,-500.0,0.00021917,3]
[349351826,1737131436209,-500.0,0.00021917,3]
[349351827,1737131436218,-500.0,0.00021917,3]
[349351828,1737131436228,-500.0,0.00021917,3]
[349351829,1737131436237,-500.0,0.00021917,3]
[349351830,1737131436247,-500.0,0.00021917,3]
[349351831,1737131436260,-500.0,0.00021917,3]
[349351832,1737131436270,-500.0,0.00021917,3]
[349351833,1737131436280,-500.0,0.00021917,3]
[349351834,1737131436289,-1286.4836868,0.00021918,7]
[349351835,1737131436298,-17860.63280179,0.00021954,3]
[349351836,1737131436323,-2093.8,0.00021954,3]
[349351853,1737131438080,-500.0,0.00021917,3]
[349351855,1737131438090,-2669.30037686,0.00021954,3]
[349351861,1737131438139,-3029.70027742,0.00021954,3]
[349351863,1737131438152,-6998.29302871,0.00021954,3]
[349351865,1737131438162,-502.54391737,0.00021968,2]
[349351867,1737131438171,-4682.20157118,0.00021969,3]
[349351869,1737131438180,-2546.24137436,0.0002197,2]
[349351881,1737131438280,-1000.81534617,0.0002197,2]
[349351888,1737131438332,-791.88618055,0.0002197,2]
[349352091,1737131440273,-733.4,0.00021917,3]
[349352093,1737131440284,-260.38427579,0.0002197,2]
[349352095,1737131440292,-500.0,0.00021973,2]
[349352097,1737131440302,-249.52484328,0.00021973,2]
[349352099,1737131440311,-500.0,0.00021973,2]
[349352101,1737131440321,-500.0,0.00021973,2]
[349352103,1737131440330,-500.0,0.00021973,2]
[349352105,1737131440339,-193.08949493,0.00022,7]
[349352109,1737131440366,-10203.3663135,0.00022,7]
[349352111,1737131440375,-337.0,0.00022,2]
[349352113,1737131440384,-395.0,0.00022006,2]
[349352115,1737131440394,-4682.20157118,0.00022038,3]
[349352117,1737131440403,-500.0,0.00022052,3]
[349352119,1737131440413,-519.5,0.00022053,3]
[349352121,1737131440422,-2020.58768372,0.00022054,5]
[349352123,1737131440431,-1033.85864494,0.00022054,5]
[349352125,1737131440440,-406.90588583,0.00022054,3]
[349352127,1737131440449,-191.4726222,0.00022054,3]
[349352129,1737131440461,-280.44625145,0.00022054,3]
[349352135,1737131440515,-28.08112635,0.00022054,3]
[349352137,1737131440524,-500.0,0.00022054,3]
[349352139,1737131440533,-500.0,0.00022054,3]
[349352141,1737131440544,-425.20245671,0.00022054,3]
[349352143,1737131440555,-74.79754329,0.00022054,3]
[349352145,1737131440564,-500.0,0.00022054,3]
[349352147,1737131440574,-500.0,0.00022054,3]
[349352149,1737131440584,-500.0,0.00022054,3]
[349352151,1737131440593,-500.0,0.00022054,3]
[349352153,1737131440603,-500.0,0.00022054,3]
[349352155,1737131440612,-500.0,0.00022054,3]
[349352157,1737131440621,-500.0,0.00022054,3]
[349352159,1737131440631,-500.0,0.00022054,3]
[349352161,1737131440639,-500.0,0.00022054,3]
[349352163,1737131440650,-500.0,0.00022054,3]
[349352165,1737131440658,-500.0,0.00022054,3]
[349352167,1737131440668,-504.80503079,0.00022054,3]
[349352169,1737131440677,-500.0,0.00022054,3]
[349352171,1737131440687,-500.0,0.00022054,3]
[349352173,1737131440701,-259.74513049,0.00022054,3]
[349352476,1737131443236,-500.0,0.00021917,3]
[349352479,1737131443246,-500.0,0.00021917,3]
[349352787,1737131446289,-430.72235739,0.00021917,3]
[349354882,1737131525206,162.750869,0.00013973,2]
[349354885,1737131555701,1000.0,0.000165,2]
[349354888,1737132426386,165.481513,0.00013973,2]
[349354899,1737132569107,-553.47489374,0.000189,2]
[349354900,1737132569130,-321.30163543,0.00019,2]
[349354901,1737132569152,-351.39842988,0.00019855,2]
[349355529,1737132638313,-148.60157012,0.00019855,2]
[349355531,1737132638323,-165.9697274,0.000209,2]
[349355533,1737132638335,-7146.16582619,0.00021,3]
[349355535,1737132638345,-165.96972738,0.00021063,2]
[349355537,1737132638354,-165.96972738,0.00021227,2]
[349355539,1737132638364,-165.96972738,0.0002139,2]
[349355541,1737132638373,-165.96972738,0.00021554,2]
[349355543,1737132638382,-165.96972738,0.00021717,2]
[349355545,1737132638391,-174.68768277,0.00021817,2]
[349355547,1737132638401,-300.0,0.00021899,2]
[349355549,1737132638410,-4213.98141412,0.000219,3]
[349355551,1737132638420,-2266.05570081,0.00021906,2]
[349355553,1737132638430,-154.35,0.00021917,2]
[349355569,1737132638568,-500.0,0.00021917,2]
[349355571,1737132638582,-500.0,0.00021917,3]
[349355573,1737132638591,-500.0,0.00021917,3]
[349355575,1737132638601,-500.0,0.00021917,3]
[349355577,1737132638611,-182.40436957,0.00021917,3]
[349355579,1737132638620,-500.0,0.00021917,3]
[349355581,1737132638629,-500.0,0.00021917,3]
[349355583,1737132638639,-500.0,0.00021917,3]